Cogmind - Beta 15 @@@ ROGUE MODE // 2025.07.11 @ 21:53:41 Player: Inverisimilidude Result: Destroyed by CW-NON(p) with EM Pulse Gun Performance ------------- Evolutions (0) 0 Regions Visited (3) 600 Robots Destroyed (0) 0 Value Destroyed (0) 0 Prototype IDs (12) 240 Alien Tech Used (0) 0 Bonus (800) 800 TOTAL SCORE: 1640 Bonus ------- Registered with UFD 300 Met Optimus in HQ 500 Cogmind --------- Core Integrity 0/250 Matter 300/300 Energy 264/265 System Corruption 0% Temperature Cool (12) Movement Core (300) Ox5 Location -9/Scraptown Parts ------- > --- POWER (1) -------- Improved Ion Engine > --- PROPULSION (2) --- (None) > --- UTILITY (2) ------ Medium Storage Unit Spectral Analyzer > --- WEAPON (2) ------- (None) > --- INVENTORY (10) --- Ion Engine Light Treads Light Treads Wheel Wheel Small Laser Slug Cannon CPS Tube (2) Peak State ------------ > --- POWER ------------ Improved Ion Engine > --- PROPULSION ------- Aluminum Leg Aluminum Leg > --- UTILITY ---------- Medium Storage Unit Spectral Analyzer > --- WEAPON ----------- EM Pulse Gun Assault Rifle > --- INVENTORY -------- Ion Engine Light Treads Light Treads Improved Aluminum Leg Wheel Wheel Small Laser Slug Cannon CPS Tube DRS Beacon [Rating: 18] Favorites ----------- Power Light Ion Engine Engine Light Ion Engine Propulsion Aluminum Leg Leg Aluminum Leg Utility Small Storage Unit Storage Small Storage Unit Processor Targeting Computer Weapon EM Pulse Gun Energy Gun EM Pulse Gun Ballistic Gun Assault Rifle Build | -11 -10 -10 -9 ------- Run | Yrd Mat Sub Scr Slots Evolved . | . . . . Power . | . . . . Propulsion . | . . . . Utility . | . . . . Weapon . | . . . . Parts Attached 13 | 6 . 1 6 Power 3 | 1 . . 2 Engine 3 | 1 . . 2 Core . | . . . . Reactor . | . . . . Propulsion 3 | 2 . . 1 Treads . | . . . . Leg 3 | 2 . . 1 Wheel . | . . . . Hover . | . . . . Flight . | . . . . Utility 4 | 1 . . 3 Device . | . . . . Storage 2 | 1 . . 1 Processor 2 | . . . 2 Hackware . | . . . . Protection . | . . . . Artifact . | . . . . Weapon 3 | 2 . 1 . Energy Gun 2 | 2 . . . Energy Cannon . | . . . . Ballistic Gun 1 | . . 1 . Ballistic Cannon . | . . . . Launcher . | . . . . Special Weapon . | . . . . Impact Weapon . | . . . . Slashing Weapon . | . . . . Piercing Weapon . | . . . . Special Melee Weapon . | . . . . Unidentified Prototypes . | . . . . Parts Lost 5 | . . . 5 Power . | . . . . Propulsion 3 | . . . 3 Utility . | . . . . Weapon 2 | . . . 2 Highest Loss Streak 5 | . . . 5 To Critical Strikes . | . . . . Average Backups 7 | 3 6 6 7 Power . | . 1 1 1 Propulsion 4 | 2 4 4 4 Utility . | . . . . Weapon 1 | . 1 1 2 Tool/Special . | . . . . Unused Backups 8 | . . . 8 Power 1 | . . . 1 Propulsion 4 | . . . 4 Utility . | . . . . Weapon 1 | . . . 1 Tool/Special 2 | . . . 2 Average Slot Usage (%) 87 | . 85 85 87 Engine 14 | . 14 14 14 Leg 28 | . 28 28 28 Storage 14 | . 14 14 14 Processor 2 | . . . 2 Energy Gun 15 | . 28 20 13 Ballistic Gun 12 | . . 7 13 Peak Build Rating 18 | 6 6 7 18 Average Rating 7 | 4 6 6 7 On Entrance 4 | . 6 6 7 Naked Turns . | . . . . Heaviest Build 21 | 11 11 12 21 Greatest Support 23 | 20 20 20 23 Greatest Overweight (x) 5 | . . . 5 Average Overweight (x) . | . . . . Largest Inventory Capacity 10 | 8 8 8 10 Average Capacity 8 | 7 8 8 8 Most Carried 10 | 6 6 7 10 Average Carried 7 | 3 6 6 7 Final Capacity 10 | 8 8 8 10 Final Carried 8 | 6 6 7 8 Class Distribution -------------------- 100% | Mutant Dominant Class ---------------- Mutant | -10/Materials Mutant | -10/Subcaves Mutant | -9/Scraptown Resources | -11 -10 -10 -9 ----------- Run | Yrd Mat Sub Scr Matter Collected 343 | 174 20 88 61 Remotely . | . . . . Salvage Created . | . . . . Parts . | . . . . Haulers Intercepted . | . . . . Recyclers Shooed . | . . . . Parts Field Recycled . | . . . . Retrieved Matter . | . . . . Parts Self-Destructed 5 | . . 5 . Prevented . | . . . . Kills | -11 -10 -10 -9 ------- Run | Yrd Mat Sub Scr Combat Hostiles Destroyed . | . . . . Classes Destroyed . | . . . . Best Kill Streak . | . . . . Combat Bots Only . | . . . . Max Kills in Single Turn . | . . . . Gunslinging . | . . . . Exploded . | . . . . Melee . | . . . . Uniques/NPCs Destroyed . | . . . . Combat | -11 -10 -10 -9 -------- Run | Yrd Mat Sub Scr Hostile Shots Fired 65 | . 1 2 62 Missed 22 | . . . 22 Hits 43 | . 1 2 40 Melee 2 | . . . 2 Projectile 41 | . 1 2 38 Critical Strikes 2 | . . . 2 Part Disruptions 1 | . . . 1 Damage Taken 779 | . 21 50 708 Core 252 | . . 32 220 Absorbed by Shields . | . . . . Core Remaining (%) 100 | 100 . . . Volleys Fired 8 | . . 4 4 Largest 2 | . . 2 2 Hottest 60 | . . 60 60 Shots Fired 15 | . . 8 7 Gun 15 | . . 8 7 Cannon . | . . . . Launcher . | . . . . Special . | . . . . Kinetic 8 | . . 4 4 Thermal . | . . . . Explosive . | . . . . Electromagnetic 7 | . . 4 3 Robot Hit Streak 4 | . . 4 4 Robot Miss Streak 2 | . . 1 2 Penetration Max . | . . . . Secondary Targets . | . . . . Shots Hit Robots 11 | . . 7 4 Core Hits 1 | . . . 1 Critical Kills . | . . . . Critical Parts Destroyed . | . . . . Critical Strikes . | . . . . Melee Attacks . | . . . . Impact . | . . . . Slashing . | . . . . Piercing . | . . . . Sneak Attacks . | . . . . Combat Hostiles . | . . . . Follow-up Attacks . | . . . . Damage Inflicted 130 | . . 82 48 Guns 130 | . . 82 48 Cannons . | . . . . Explosions . | . . . . Melee . | . . . . Ramming . | . . . . Kinetic 75 | . . 49 26 Thermal . | . . . . Explosive . | . . . . Electromagnetic 55 | . . 33 22 Impact . | . . . . Slashing . | . . . . Piercing . | . . . . Highest Corruption . | . . . . Average Corruption . | . . . . Corruption Purged . | . . . . Corruption Blocked . | . . . . Overload Shots . | . . . . Overflow Damage . | . . . . Projectiles . | . . . . Explosions . | . . . . Melee . | . . . . Knockbacks . | . . . . Impact . | . . . . Kinetic . | . . . . Secondary . | . . . . Self-Inflicted Damage . | . . . . Shots . | . . . . Rammed . | . . . . Targets Rammed . | . . . . Kicked . | . . . . Crushed . | . . . . Highest Temperature 42 | . . . 42 Average Temperature 16 | . . . 16 Received Heat Transfer 271 | . 12 18 241 Siege Activations . | . . . . Martial Activations . | . . . . Shielding Activations . | . . . . Robots Disrupted . | . . . . Combat Hostiles . | . . . . Robots Corrupted . | . . . . Combat Hostiles . | . . . . Parts Fried . | . . . . Impact Corruptions . | . . . . Robots Melted . | . . . . Combat Hostiles . | . . . . Parts Melted . | . . . . Heat Transferred . | . . . . Parts Sabotaged . | . . . . Parts Stolen . | . . . . Parts Stripped . | . . . . Power Chain Reactions . | . . . . Alert | -11 -10 -10 -9 ------- Run | Yrd Mat Sub Scr Maximum Alert Level . | . . . . Low Security (%) 100 | 100 100 . . Level 1 . | . . . . Level 2 . | . . . . Level 3 . | . . . . Level 4 . | . . . . Level 5 . | . . . . High Security . | . . . . Max Security . | . . . . Peak Influence . | . . . . Initial . | . . . . Average . | . . . . Influence Increases . | . . . . Influence Decreases . | . . . . Squads Dispatched 1 | . 1 . . Investigation 1 | . 1 . . Extermination . | . . . . Reinforcement . | . . . . Assault . | . . . . Garrison . | . . . . Intercept . | . . . . Searches Triggered . | . . . . Construction Impeded . | . . . . Haulers Reinforced . | . . . . Active Scanning Responses . | . . . . Cargo Convoy Interrupts . | . . . . Stealth | -11 -10 -10 -9 --------- Run | Yrd Mat Sub Scr Distress Signals . | . . . . Communications Jammed . | . . . . Distress Signals . | . . . . Times Spotted 23 | . 5 2 16 Peak Tracking Total 10 | . 2 2 10 Tactical Retreats . | . . . . Traps | -11 -10 -10 -9 ------- Run | Yrd Mat Sub Scr Traps Triggered . | . . . . Indirectly . | . . . . Trap Hack Attempts . | . . . . Triggered . | . . . . Disarmed . | . . . . Reprogrammed . | . . . . Reused . | . . . . Traps Extracted . | . . . . Installed . | . . . . Triggered . | . . . . Machines | -11 -10 -10 -9 ---------- Run | Yrd Mat Sub Scr Machines Disabled . | . . . . Max in Single Turn . | . . . . Machines Repaired . | . . . . Machines Dismantled . | . . . . Machines Sabotaged . | . . . . Overloaded Fab Kills . | . . . . Hacking | -11 -10 -10 -9 --------- Run | Yrd Mat Sub Scr Machines Accessed 7 | . . . 7 Terminals . | . . . . Fabricators . | . . . . Repair Stations . | . . . . Recycling Units . | . . . . Scanalyzers . | . . . . Garrison Access . | . . . . Total Hacks 42 | . . . 42 Successful 42 | . . . 42 Failed . | . . . . Catastrophic . | . . . . Database Lockouts . | . . . . Manual . | . . . . Terminals . | . . . . Fabricators . | . . . . Repair Stations . | . . . . Recycling Units . | . . . . Scanalyzers . | . . . . Garrison Access . | . . . . Terminal Hacks 42 | . . . 42 Record 36 | . . . 36 Robot Analysis 5 | . . . 5 Proto ID Catalog 1 | . . . 1 Fabricator Hacks . | . . . . Repair Station Hacks . | . . . . Recycling Unit Hacks . | . . . . Scanalyzer . | . . . . Garrison Access Hacks . | . . . . Unauthorized Hacks . | . . . . Terminals . | . . . . Fabricators . | . . . . Repair Stations . | . . . . Recycling Units . | . . . . Scanalyzers . | . . . . Garrison Access . | . . . . Data Cores Recovered 1 | . 1 . . Used . | . . . . Hacking Detections . | . . . . Full Trace Events . | . . . . Feedback Events . | . . . . Feedback Blocked . | . . . . Robot Schematics Acquired . | . . . . Robots Built . | . . . . Authchips . | . . . . Time . | . . . . Total Robot Build Rating . | . . . . Part Schematics Acquired . | . . . . Parts Built . | . . . . Authchips . | . . . . Time . | . . . . Total Part Build Rating . | . . . . Parts Repaired . | . . . . Time . | . . . . Parts Recycled . | . . . . Recycled Matter . | . . . . Retrieved Matter . | . . . . Retrieved Components . | . . . . Parts Scanalyzed . | . . . . Part Schematics Acquired . | . . . . Parts Damaged . | . . . . Bothacking | -11 -10 -10 -9 ------------ Run | Yrd Mat Sub Scr Used RIF Installer . | . . . . Robots Hacked . | . . . . Non-combat . | . . . . Combat . | . . . . Robot Hacks Applied . | . . . . Relay Couplers Released . | . . . . Fabnet Peak Effective % . | . . . . Robots Rewired . | . . . . Allies Hacked . | . . . . Hacks Repelled . | . . . . Allies | -11 -10 -10 -9 -------- Run | Yrd Mat Sub Scr Total Allies . | . . . . Largest Group . | . . . . Highest-Rated Group . | . . . . Highest-Rated Ally . | . . . . Total Orders . | . . . . Ally Attacks . | . . . . Total Damage . | . . . . Kills . | . . . . Allies Corrupted . | . . . . Allies Melted 3 | . . . 3 Intel | -11 -10 -10 -9 ------- Run | Yrd Mat Sub Scr Active Infowar (turns) 109 | . . . 109 Optics 109 | . . . 109 Robot Analysis Total 5 | . . . 5 Derelict Logs Recovered . | . . . . Drone Launches . | . . . . Drone Recoveries . | . . . . Exploration | -11 -10 -10 -9 ------------- Run | Yrd Mat Sub Scr Turns Passed 2787 | 89 107 255 2336 Spaces Moved 2081 | 68 67 136 1810 Core 12 | 10 . . 2 Treads . | . . . . Legs 2069 | 58 67 136 1808 Wheels . | . . . . Hover . | . . . . Flight . | . . . . Fastest Speed 50 | 50 120 120 120 Average Speed 125 | 109 120 120 127 Slowest Speed 300 | 120 120 120 300 Overloaded Moves . | . . . . Propulsion Burnouts . | . . . . Robots Hopped . | . . . . Potential Cave-ins . | . . . . Cave-ins Triggered . | . . . . Exploration Rate (%) 32 | 4 21 13 90 Regions Visited 3 Branch Regions 2 Pre-discovered Areas . | . . . . Known Exits Taken . | . . . . Unknown Exits Taken 3 | 1 1 1 . Scrap Searched 5 | . . . 5 Spaces Dug . | . . . . Terrain Destroyed . | . . . . Melee . | . . . . Projectile . | . . . . AOE . | . . . . Terrain Rammed . | . . . . Walls Destroyed . | . . . . Machines Disabled . | . . . . Actions | -11 -10 -10 -9 --------- Run | Yrd Mat Sub Scr Total 2230 | 79 93 219 1839 Wait 112 | . 27 78 7 Move 2078 | 67 66 135 1810 Hop . | . . . . Pick Up 12 | 6 . 1 5 Fast Attach 9 | 6 . . 3 Attach 1 | . . . 1 Detach . | . . . . Swap 3 | . . 1 2 Drop 7 | . . . 7 Fire 8 | . . 4 4 Melee . | . . . . Ram . | . . . . Kick . | . . . . Crush . | . . . . Escape Stasis . | . . . . Rewire . | . . . . Trap . | . . . . Miscellaneous . | . . . . Route ------- -11/Scrapyard -10/Materials -10/Subcaves -9/Scraptown (discovered 1 exit: [*Fac]) History --------- Turn | Location | Event 5 | -11/Scrapyard | Discovered new exit (range 15) 90 | -11/Scrapyard | Entered Materials 91 | -10/Materials | Met a group of wandering Federalists 189 | -10/Materials | Discovered new exit (range 6) 197 | -10/Materials | Entered Subcaves 197 | -10/Subcaves | Accompanied by 1 ally 198 | -10/Subcaves | Continued accompanying wandering Federalists (2) 300 | -10/Subcaves | Build established: Mutant 427 | -10/Subcaves | Wandering Federalist uncovered a shortcut to Scraptown 452 | -10/Subcaves | Entered Scraptown 697 | -9/Scraptown | Visited The Evicted 748 | -9/Scraptown | Visited TADAMA 803 | -9/Scraptown | Visited Assassins FH 925 | -9/Scraptown | Discovered new exit (range 5) 1058 | -9/Scraptown | Visited Shadow of the Wyrm 1112 | -9/Scraptown | Visited SPCMW 1165 | -9/Scraptown | Visited Cave Peace 1238 | -9/Scraptown | Visited UFD Registry 1260 | -9/Scraptown | Visited Comm Corps 1754 | -9/Scraptown | Heard Great Nut preacher, LISTEN AND RECITE! 1874 | -9/Scraptown | Registered with UFD as "Bladethruster" 1922 | -9/Scraptown | Visited Scrapoid Pod Storage 1976 | -9/Scraptown | Visited Scrap Suit Storage 2027 | -9/Scraptown | Visited Analyses Database 2054 | -9/Scraptown | Visited Science Guys 2305 | -9/Scraptown | Visited Derelict Rescue Squad 2315 | -9/Scraptown | Found DRS Beacon 2356 | -9/Scraptown | Visited DA-N13 Charitable Foundation 2373 | -9/Scraptown | Found DCF Scrap (28 items) 2471 | -9/Scraptown | Met Optimus 2471 | -9/Scraptown | Accepted into 0bPrime 2661 | -9/Scraptown | Visited Infowarlord's Domain 2679 | -9/Scraptown | Found Spectral Analyzer 2736 | -9/Scraptown | Civil war broke out across Scraptown 2737 | -9/Scraptown | Visited Cartography Club 2784 | -9/Scraptown | Core integrity fell below 50% 2786 | -9/Scraptown | Lost 6 allies 2787 | -9/Scraptown | Core integrity fell below 20% 2788 | -9/Scraptown | Destroyed by CW-NON(p) with EM Pulse Gun Last Messages --------------- 02782_ 0W-D2X(j) suffers critical hit (Burn). 02782_ Aluminum Leg destroyed. 02782_ 0W-D2X(j) overheating. 02783_ Slug penetrates 0W-D2X(j). 02783_ 0W-D2X(j) suffers critical hit (Destroy). 02783_ Acquired DRS Beacon. 02783_ Critical hit (Burn: +50). 02784_ 27-8D2(j) heat spikes uncontrollably. 02784_ Dropped DRS Beacon. 02784_ 0W-D2X(j) destroyed. 02784_ Bolt penetrates Optimus. 02785_ Imp. Aluminum Leg destroyed. 02785_ Z9-47S(x) suffers critical hit (Burn). 02786_ Z9-47S(x) switches sides: "I don't know who to fight for!" 02786_ NP-UT8(j) suffers critical hit (Burn). 02787_ Bolt penetrates Optimus. 02787_ ED-GTD(j) suffers critical hit (Burn). 02787_ ED-GTD(j) overheating. [Achievement: Back For More] Map ----- +----------------------------------------------------+ | ?????????????????????????????????##??????????????? | | ????????????????????????????????# #?????????????? | | ???????????????????????????????? =?????????????? | | ???????????????????????????????? !?????????????? | | ???????????????????????????????? ?????????????? | | ???????????????????????????????? ?????????????? | | ????????????????????????????????# #?????????????? | | ????????????????????????????????# #?????????????? | | ????????????????????????????????# #?????????????? | | ????????????????????????????????# #?????????????? | | ????????????????????????????????# #?????????????? | | ????????????????????????????????# #?????????????? | | ????????????????????????????????# #?????????????? | | ######??????????????????#####?### #?????????????? | | """""#??????????????????#|[ #!!## #?????????????? | | ! "#??????????????????# ! #!=## #??????#??????? | | "#??????????????????# # ?# ###### #?#????? | | "#??????????????????? ??# # ?????? | | "#???????????????????? ???# # ???????? | | ### ##????????????????????# #???#jj##%#[#????????? | | ### ########### ########### ####;hx;;/[#?????????? | | """ """"""""""" """ " """ """ " 3 %"#?????????? | | p j j =!"#?????????? | | & *%/="########### | | p = "## # | | g j @ ! = ## # | | p =%[ %%[ # | | !! """"""""""""""""""" " " /! "## # | | """""""""""""""""""" " " ## # | | ""###### ################" ########### | | ""# ##????????#" [ "#########?? | | ""# X"#????????# =%*"## #?? | | ""# "" "" ##????????# " = "## %[ #?? | | ""# "" "" X"#??????##" "= "## !!=* #?? | | ""# " " ######### #" [ !%"##=**!###?? | | "" "" !*[%! [ /!!###?? | | "" "" =%!= ##=*[]] #?? | | ""# " " ######### #""! "##!!]%!*#?? | | ""# "" "" ""#??????###"" "##==|*=*#?? | | ""# "" "" ##????????#"" "#########?? | | ""# X"#????????#"" "########### | | ""# ##????????#" "## """""" | | ""###### ################"" ## " " " | | """""""""""""""""""""""""""" ## | | """""""""""""""""""""""""""" *[= | | [/% ## | | !%!"## | | "## " " " | | ## """""" | | ########## | +----------------------------------------------------+ Best States ------------- Heat Dissipation 25 Energy Generation 12 Energy Capacity 265 Matter Stores 300 Matter Capacity 300 Sight Range 24 Terrain Scan Density 10 Evasion (%) 55 Targeting Accuracy 5 Item Schematics ----------------- None Robot Schematics ------------------ None Fabricated ------------ Nothing Repaired ---------- Nothing Alien Tech Used ----------------- None Achievements -------------- Back For More Challenges ------------ None Game ------ Seed CooledMultireflexPower Manual? 0 Play Time 00:27:43 Cumulative 39.4 hours Start 2025.07.11 @ 21:25:44 End 2025.07.11 @ 21:53:41 Sessions 1 Manual Loads 0 Difficulty Rogue Special Mode None Game No. 50 Rogue 50 Adventurer 0 Explorer 0 Win Type - Total 0 Types 0/0/0/0/0/0/0/0/0/0 Lore% 27 Gallery% 28 Achievement% 28 Wizard Run 0 Options --------- Layout 1 ASCII 0 Keyboard 0 Movement Arrows Keybinds 0 Fullscreen 1 Font 24/Smallcaps Map View 50x35 Zoom Use 0% Tactical HUD 1 Map Filters NONE Filters NONE Steam 1 RUN: fb59c9a0-a4ea-4e8e-872a-85bbb7e0d4bd